Workbook

Sheet EXT
A2: Zvolte jazyk | F2: =Translation!A3 -> General | J2: =Translation!A6 -> Manually operated | M2: =Translation!A7 -> Electric. operated | U2: H | V2: =Translation!A26 -> Clear opening height [mm]
A3: Select a language | F3: =Translation!A4 -> height [mm] | G3: FOH | H3: D | I3: K | J3: min. CEL | K3: CPH*1 | L3: CPH*1 *2 | M3: =J3 -> min. CEL | N3: CPH*1 | O3: X | Q3: E1 | S3: E2 | U3: GH | V3: =Translation!A3&" "&Translation!A4 -> General height [mm]
A4: Wählen Sie eine Sprache: | D4: EN | F4: GH | G4: GH + 0 | H4: GH + 575 | I4: GH - 35 | J4: GH + 100 | K4: GH - 250 | L4: GH - 0 | M4: GH + 125 | N4: GH - 0 | O4: Black | P4: Cube | Q4: =O4 -> Black | R4: =P4 -> Cube | S4: =Q4 -> Black | T4: =R4 -> Cube | U4: FOH | V4: =Translation!A9 -> Height to bottom edge of lintel profile [mm]
A5: Wybierz język: | F5: 1875 | G5: =F5+0 -> 1875 | H5: =F5+575 -> 2450 | I5: =F5-35 -> 1840 | J5: =F5+100 -> 1975 | K5: =F5-250 -> 1625 | L5: =F5 -> 1875 | M5: =J5+(35-10) -> 2000 | N5: =F5 -> 1875 | O5: 3540 | P5: 3680 | Q5: 1400 | R5: 1800 | S5: 3265 | T5: 3480 | U5: D | V5: =Translation!A12 -> Back room [mm]
A6: Sélectionner une langue: | E6: REN | F6: 1955 | G6: =F6+0 -> 1955 | H6: 2530 | I6: 1920 | J6: =F6+100 -> 2055 | K6: 1705 | L6: =F6 -> 1955 | M6: =J6+(35-10) -> 2080 | N6: 1955 | U6: K | V6: =Translation!A16 -> Bottom edge of horizontal tracks [mm]
A7: Kies een taal: | F7: 2000 | G7: =F7+0 -> 2000 | H7: 2575 | I7: 1965 | J7: 2100 | K7: 1750 | L7: =F7 -> 2000 | M7: 2125 | N7: 2000 | U7: CEL | V7: =Translation!A8 -> Height of ceiling [mm]
E8: REN | F8: 2080 | G8: =F8+0 -> 2080 | H8: 2655 | I8: 2045 | J8: 2180 | K8: 1830 | L8: 2080 | M8: 2205 | N8: 2080 | U8: CPH | V8: =Translation!A10 -> Bottom edge of fully open door [mm]
F9: 2125 | G9: =F9+0 -> 2125 | H9: 2700 | I9: 2090 | J9: 2225 | K9: 1875 | L9: 2125 | M9: 2250 | N9: 2125 | U9: Y1 | V9: =Translation!A22 -> Hanging point
F10: 2250 | G10: 2250 | H10: 2825 | I10: 2215 | J10: 2350 | K10: 2000 | L10: 2250 | M10: 2375 | N10: 2250 | U10: Y2 | V10: =Translation!A23 -> Hanging point (W>3000 or H>2500)
F11: 2375 | G11: 2375 | H11: 2950 | I11: 2340 | J11: 2475 | K11: 2125 | L11: 2375 | M11: 2500 | N11: 2375 | U11: X | V11: =Translation!A14 -> Length of motor [mm]
F12: 2500 | G12: 2500 | H12: 3075 | I12: 2465 | J12: 2600 | K12: 2250 | L12: 2500 | M12: 2625 | N12: 2500 | O12: 4240 | S12: 3975 | U12: E1 | V12: =Translation!A18 -> Hanging point for motor track [mm]
F13: 2625 | G13: =F13+0 -> 2625 | H13: 3200 | I13: 2590 | J13: 2725 | K13: 2375 | L13: =F13 -> 2625 | M13: 2750 | N13: 2625 | P13: 4160 | R13: 2050 | T13: 3960 | U13: E2 | V13: =Translation!A20 -> Hanging point for motor [mm]
A14: Z | D14: X | E14: REN | F14: =Translation!A49 -> = set without pre-drilled holes in vertical angle; vertical angle in white color (RAL 9010) | U14: Z | V14: =Translation!A33 -> Position of socket, ca. 250 mm
G15: E2 | U15: *1 | V15: =Translation!A50 -> clear height could be decreased by accessories installed on inner side of door leaf (handgrip, reinforcing strut etc.)
I16: D
K17: E1 | R17: =Translation!A28&" (GH = H = FOH)" -> Standard situation (GH = H = FOH)
D18: Y1 = 400 | M18: Y2 = 800 | U18: *2 | V18: =Translation!A51 -> when door stopper is used
C24: 165
B27: =Translation!A34 -> CEE 7/3 or CEE 7/5 socket | U27: GH
B28: =Translation!A35 -> 230V, 50Hz, protect by 6 A (10 A) circuit breaker | U28: =
U29: H
U30: =
U31: FOH
R37: =Translation!A29&" (GH > H)" -> Non-standard situation (GH > H) | W37: =Translation!A29&" (GH < H)" -> Non-standard situation (GH < H)
F40: GH - 75 | K40: K | O40: GH | P40: CEL
AA48: H
U49: GH | Y49: GH
T50: H | U50: = | Y50: =
M51: 140 | U51: FOH | Y51: FOH
P56: =Translation!A52 -> Min. load capacity of ceiling/max. weight per hanging point: 100 kg
A57: =Translation!A24 -> Standard installation | G57: =Translation!A25 -> Alternative installation
A58: >= 95 | E58: >=95 | G58: 0 - 94 | J58: 0 - 94
Q62: =Translation!A30 -> Panel assembly and design of door leaf is always considered based on FOH. | X62: https://www.door-documents.com/en/installation-drawing-ext | Z62: https://www.door-documents.com/en/installation-drawing-ext
Z63: Guardy EXT
AB66: =Translation!A31 -> Version: | AC66: =Translation!A32 -> Sheet:
Z67: 2525 | AB67: 2341 | AC67: A4

Sheet Translation (hidden)
A1: EXT
A2: =IF(ISERROR(VLOOKUP(EXT!D4,Selections!A1:B12,2,FALSE))=TRUE,"Translation not available",VLOOKUP(EXT!D4,Selections!A1:B12,2,FALSE)) -> 2 | I2: CZ | J2: EN | K2: DE | L2: PL | M2: FR | N2: NL | O2: ET | P2: FI
A3: =VLOOKUP($I3,$I:$T,A$2,FALSE) -> General | I3: Obecná | J3: General | K3: Allgemeine | L3: Ogólna | M3: Hauteur | N3: Algemene | O3: Üldine | P3: Yleinen
A4: =VLOOKUP($I4,$I:$T,A$2,FALSE) -> height [mm] | I4: výška [mm] | J4: height [mm] | K4: Höhe [mm] | L4: wysokość [mm] | M4: Générale [mm] | N4: hoogte [mm] | O4: kõrgus [mm] | P4: Korkeus [mm]
A5: Min. height of ceiling [mm] | I5: Min. výška stropu [mm] | J5: Min. height of ceiling [mm] | K5: Min. Deckenhöhe [mm] | L5: Min wysokość stropu [mm] | M5: Hauteur minimale du plafond [mm] | N5: Min. plafondhoogte [mm] | O5: Min. lae kõrgus [mm] | P5: Min. katon korkeus [mm]
A6: Manually operated | I6: Vrata bez motoru | J6: Manually operated | K6: Tor ohne Motor | L6: Brama bez napędu | M6: Porte sans moteur | N6: Deur zonder motor | O6: Käsitsi juhitav | P6: Käsikäyttöinen
A7: Electric. operated | I7: Vrata s motorem | J7: Electric. operated | K7: Tor mit Motor | L7: Brama z napędem | M7: Porte avec moteur | N7: Garaged. met motor | O7: Elektriliselt juhitav | P7: Sähkökäyttöinen
A8: Height of ceiling [mm] | I8: Výška stropu [mm] | J8: Height of ceiling [mm] | K8: Deckenhöhe [mm] | L8: Wysokość stropu [mm] | M8: Hauteur du plafond [mm] | N8: Plafondhoogte [mm] | O8: Lae kõrgus [mm] | P8: Katon korkeus [mm]
A9: Height to bottom edge of lintel profile [mm] | I9: Výška ke spodní hraně překladového profilu [mm] | J9: Height to bottom edge of lintel profile [mm] | K9: Höhe zur unteren Kante des Sturzprofiles [mm] | L9: Wysokość do dolnej krawędzi profilu nadproża [mm] | M9: Hauteur jusqu'à l'arête inférieure du profilé de linteau [mm] | N9: Hoogte vanaf de onderrand van het dwarsbalkprofiel [mm] | O9: Kõrgus silluse profiili alumise servani [mm] | P9: Korkeus kamanaprofiilin alareunaan [mm]
A10: Bottom edge of fully open door [mm] | I10: Spodní hrana plně otevřených vrat [mm] | J10: Bottom edge of fully open door [mm] | K10: Untere Kante des vollständig geöffneten Tors [mm] | L10: Dolna krawędź w pełni otwartej bramy [mm] | M10: Arête inférieure de la porte toute ouverte [mm] | N10: Onderste rand van een volledig geopende deur [mm] | O10: Täielikult avatud ukse alumine serv [mm] | P10: Täysin auki olevan oven alareunan korkeus [mm]
A11: Bottom edge of fully open door (CPH) [mm] | I11: Spodní hrana plně otevřených vrat (CPH) [mm] | J11: Bottom edge of fully open door (CPH) [mm] | K11: Untere Kante des vollständig geöffneten Tors (CPH) [mm] | L11: Dolna krawędź w pełni otwartej bramy (CPH) [mm] | M11: Arête inférieure de la porte toute ouverte (CPH) [mm] | N11: Onderste rand van een volledig geopende deur (CPH) [mm] | O11: Täielikult avatud ukse alumine serv (CPH) [mm] | P11: Täysin auki olevan oven alareunan korkeus (CPH) [mm]
A12: Back room [mm] | I12: Hloubka vedení [mm] | J12: Back room [mm] | K12: Führungstiefe [mm] | L12: Głębokość prowadzenia [mm] | M12: Profondeur du guidage [mm] | N12: Inbouwdiepte van de rails [mm] | O12: Tagaruum [mm] | P12: Syvyystila [mm]
A13: Back room (D) [mm] | I13: Hloubka vedení (D) [mm] | J13: Back room (D) [mm] | K13: Führungstiefe (D) [mm] | L13: Głębokość prowadzenia (D) [mm] | M13: Profondeur du guidage (D) [mm] | N13: Diepte van de geleidingsrail (D) [mm] | O13: Tagaruum (D) [mm] | P13: Syvyystila (D) [mm]
A14: Length of motor [mm] | I14: Délka pohonu [mm] | J14: Length of motor [mm] | K14: Antriebslänge [mm] | L14: Długość napędu [mm] | M14: Longueur de la propulsion [mm] | N14: Inbouwdiepte incl. de aandrijving [mm] | O14: Mootori pikkus [mm] | P14: Avaajan kokonaispituus [mm]
A15: Length of motor (X) [mm] | I15: Délka pohonu (X) [mm] | J15: Length of motor (X) [mm] | K15: Antriebslänge (X) [mm] | L15: Długość napędu (X) [mm] | M15: Longueur de la propulsion (X) [mm] | N15: Inbouwdiepte incl. de aandrijving (X) [mm] | O15: Mootori pikkus (X) [mm] | P15: Avaajan kokonaispituus (X) [mm]
A16: Bottom edge of horizontal tracks [mm] | I16: Spodní hrana horizontálního vedení [mm] | J16: Bottom edge of horizontal tracks [mm] | K16: Untere Kante der Horizontalführung [mm] | L16: Dolna krawędź prowadzenia poziomego [mm] | M16: Arête inférieure du guidage horizontale [mm] | N16: Onderste rand van de horizontale rails [mm] | O16: Horisontaalsete siinide alumine serv [mm] | P16: Vaakajohteiden alareuna [mm]
A17: Bottom edge of horizontal tracks (K) [mm] | I17: Spodní hrana horizontálního vedení (K) [mm] | J17: Bottom edge of horizontal tracks (K) [mm] | K17: Untere Kante der Horizontalführung (K) [mm] | L17: Dolna krawędź prowadzenia poziomego (K) [mm] | M17: Arête inférieure du guidage horizontale (K) [mm] | N17: Onderste rand van de horizontale rails (K) [mm] | O17: Horisontaalsete siinde alumine serv (K) [mm] | P17: Vaakajohteiden alareuna (K) [mm]
A18: Hanging point for motor track [mm] | I18: Kotvící bod lišty pohonu [mm] | J18: Hanging point for motor track [mm] | K18: Verankerungspunkt der Antriebsleiste [mm] | L18: Punkt uchwycenia szyny napędu [mm] | M18: Point d'ancrage de la glissière de propulsion [mm] | N18: Bevestigingspunt van de motorgeleidingsrail [mm] | O18: Mootorisiini riputuspunkt [mm] | P18: Avaajan kiskon ripustuspiste [mm]
A19: Hanging point for motor track (E1) [mm] | I19: Kotvící bod lišty pohonu (E1) [mm] | J19: Hanging point for motor track (E1) [mm] | K19: Verankerungspunkt der Antriebsleiste (E1) [mm] | L19: Punkt uchwycenia szyny napędu (E1) [mm] | M19: Point d'ancrage de la glissière de propulsion (E1) [mm] | N19: Bevestigingspunt van de motorgeleidingsrail (E1) [mm] | O19: Mootorisiini riputuspunkt (E1) [mm] | P19: Avaajan kiskon ripustuspiste (E1) [mm]
A20: Hanging point for motor [mm] | I20: Kotvící bod pohonu [mm] | J20: Hanging point for motor [mm] | K20: Verankerungspunkt des Antriebes [mm] | L20: Punkt uchwycenia napędu [mm] | M20: Point d'ancrage de la propulsion [mm] | N20: Bevestigingspunt van de aandrijvingsgeleidingsbalk [mm] | O20: Mootori riputuspunkt [mm] | P20: Avaajan ripustuspiste [mm]
A21: Hanging point for motor (E2) [mm] | I21: Kotvící bod pohonu (E2) [mm] | J21: Hanging point for motor (E2) [mm] | K21: Verankerungspunkt des Antriebes (E2) [mm] | L21: Punkt uchwycenia napędu (E2) [mm] | M21: Point d'ancrage de la propulsion (E2) [mm] | N21: Bevestigingsp. van de aandrijvingsgeleidingsbalk (E2) [mm] | O21: Mootori riputuspunkt (E2) [mm] | P21: Avaajan ripustuspiste (E2) [mm]
A22: Hanging point | I22: Kotvící bod | J22: Hanging point | K22: Verankerungspunkt | L22: Punkt uchwycenia | M22: Point d'ancrage | N22: Bevestigingspunt | O22: Riputuspunkt | P22: Ripustuspiste
A23: Hanging point (W>3000 or H>2500) | I23: Kotvící bod (W>3000 nebo H>2500) | J23: Hanging point (W>3000 or H>2500) | K23: Verankerungspunkt (W>3000 oder H>2500) | L23: Punkt uchwycenia (W>3000 lub H>2500) | M23: Point d'ancrage (W>3000 ou H>2500) | N23: Bevestigingspunt (W>3000 of H>2500) | O23: Riputuspunkt (W>3000 või H>2500) | P23: Ripustuspiste (W>3000 või H>2500)
A24: Standard installation | I24: Standardní montáž | J24: Standard installation | K24: Standardmontage | L24: Instalacja standardowa | M24: Assemblage standard | N24: Standaardmontage | O24: Standard paigaldus | P24: Tavallinen asennusmenetelmä
A25: Alternative installation | I25: Alternativní montáž | J25: Alternative installation | K25: Alternative Montage | L25: Instalacja alternatywna | M25: Assemblage alternatif | N25: Alternatieve montage | O25: Alternatiivne paigaldus | P25: Vaihtoehtoinen asennusmenetelmä
A26: Clear opening height [mm] | I26: Výška stavebního otvoru [mm] | J26: Clear opening height [mm] | K26: Höhe der Bauöffnung [mm] | L26: Wysokość otworu budowlanego [mm] | M26: Hauteur de la baie de construction [mm] | N26: Dagmaat hoogte [mm] | O26: Puhas avanemiskõrgus [mm] | P26: Oviaukon korkeus [mm]
A27: Clear opening height (H) [mm] | I27: Výška stavebního otvoru (H) [mm] | J27: Clear opening height (H) [mm] | K27: Höhe der Bauöffnung (H) [mm] | L27: Wysokość otworu budowlanego (H) [mm] | M27: Hauteur de la baie de construction (H) [mm] | N27: Dagmaat hoogte (H) [mm] | O27: Puhas avanemiskõrgus (H) [mm] | P27: Oviaukon korkeus (H) [mm]
A28: Standard situation | I28: Standardní situace | J28: Standard situation | K28: Standardsituation | L28: Sytuacja standardowa | M28: Situation standard | N28: Standaardsituatie | O28: Standardne olukord | P28: Vakiotilanne
A29: Non-standard situation | I29: Nestandardní situace | J29: Non-standard situation | K29: Ungewöhnliche Situation | L29: Sytuacja niestandardowa | M29: Situation hors de standard | N29: Niet-standaardsituaties | O29: Ebastandardne olukord | P29: Epätyypillinen tilanne
A30: Panel assembly and design of door leaf is always considered based on FOH. | I30: Skladba panelů a design křídla je vždy řešen vůči FOH. | J30: Panel assembly and design of door leaf is always considered based on FOH. | K30: Die Paneelaufteilung und das Design des Torblattes wird immer auf der Basis von FOH-Mass gelöst. | L30: Skład paneli i konstrukcja skrzydła jest zawsze rozpatrywane na podstawie FOH. | M30: Assemblage de panneau et la conception de battant de porte est toujours considéré comme la base de FOH. | N30: Paneel samenstelling en complete opbouw van het deurblad wordt altijd gebaseerd op FOH. | O30: Panel assembly and design of door leaf is always considered based on FOH. | P30: Panel assembly and design of door leaf is always considered based on FOH.
A31: Version: | I31: Verze: | J31: Version: | K31: Version: | L31: Wersja: | M31: VERSION: | N31: Versie: | O31: Versioon: | P31: Versio:
A32: Sheet: | I32: Formát: | J32: Sheet: | K32: Format: | L32: Format: | M32: FORMAT: | N32: Formaat: | O32: Leht: | P32: Koko:
A33: Position of socket, ca. 250 mm | I33: Pozice zásuvky, cca. 250 mm | J33: Position of socket, ca. 250 mm | K33: Die Position der Steckdose ca.250 mm | L33: Położenie gniazda około 250 mm | M33: La position de la prise électrique env. 250 mm | N33: Positie van Eurostopcontact CEE, ca. 250mm | O33: Pistikupesa asend, ca. 250 mm | P33: Pistorasian sijainti, ca. 250 mm
A34: CEE 7/3 or CEE 7/5 socket | I34: Zásuvka typu CEE 7/3 nebo CEE 7/5 | J34: CEE 7/3 or CEE 7/5 socket | K34: Steckdose CEE 7/3 oder CEE 7/5 | L34: Gniazdo CEE 7/3 lub CEE 7/5 | M34: Prise CEE 7/3 ou CEE 7/5 | N34: Eurostopcontact CEE 7/3 of CEE 7/5 | O34: CEE 7/3 või CEE 7/5 pistikupesa | P34: CEE 7/3 või CEE 7/5 pistorasia
A35: 230V, 50Hz, protect by 6 A (10 A) circuit breaker | I35: 230V, 50Hz, jištěno 6 A (10 A) jističem | J35: 230V, 50Hz, protect by 6 A (10 A) circuit breaker | K35: 230V, 50Hz, Sicherung 6 A (10 A) mit Schutzschalter | L35: 230V, 50Hz, ochrona za pomocą bezpiecznika 6A (10A) | M35: 230V, 50Hz, assuré par un disjoncteur 6 A (10 A) | N35: 230V, 50Hz, afgezekerd met 6A (10A) | O35: 230V, 50Hz,kaitsta 6 A (10 A) kaitselülitiga | P35: 230V, 50Hz, 6 A (10 A) suojakytkimellä
A36: Opening width [mm] | I36: Šířka stavebního otvoru [mm] | J36: Opening width [mm] | K36: Lichte Breite [mm] | L36: Szerokość otworu [mm] | M36: Largeur de baie [mm] | N36: Opening breedte | O36: Ava laius [mm] | P36: Oviaukon leveys [mm]
A37: Opening width (W) [mm] | I37: Šířka stavebního otvoru (W) [mm] | J37: Opening width (W) [mm] | K37: Lichte Breite (W) [mm] | L37: Szerokość otworu (W) [mm] | M37: Largeur de baie (W) [mm] | N37: Opening breedte (W) [mm] | O37: Ava laius (W) [mm] | P37: Oviaukon leveys (L) [mm]
A38: Operated | I38: Ovládání | J38: Operated | K38: Bedienung | L38: Sterowanie | M38: Commande | N38: Bediening | O38: Opereeritud | P38: Käyttötapa
A39: manually | I39: ručně | J39: manually | K39: händisch | L39: ręcznie wykonany | M39: manuelle | N39: handbediend | O39: käsitsi | P39: Käsikäyttöinen
A40: electrical | I40: elektricky | J40: electrical | K40: elektrisch | L40: elektrycznie | M40: motorisée | N40: elektrisch | O40: elektriliselt | P40: Sähkökäyttöinen
A41: Height of lintel [mm] | I41: Výška nádpraží [mm] | J41: Height of lintel [mm] | K41: Freiraum über Sturz [mm] | L41: Wysokość nadproża [mm] | M41: Retombée de linteau [mm] | N41: Hoogte van de latei [mm] | O41: Silluse kõrgus [mm] | P41: Kamanan korkeus [mm]
A42: Height of lintel (F) [mm] | I42: Výška nádpraží (F) [mm] | J42: Height of lintel (F) [mm] | K42: Freiraum über Sturz (F) [mm] | L42: Wysokość nadproża (F) [mm] | M42: Retombée de linteau (F) [mm] | N42: Hoogte van de latei (F) [mm] | O42: Silluse kõrgus (F) [mm] | P42: Kamanan korkeus (F) [mm]
A43: Type of motor | I43: Typ pohonu | J43: Type of motor | K43: Der Typ des Antriebs | L43: Rodzaj napędu | M43: Type de motor | N43: Type motor | O43: Mootori tüüp | P43: Avaajan malli
A44: =VLOOKUP($I44,$I:$T,A$2,FALSE) -> Information regarding motor | I44: Informace o motoru | J44: Information regarding motor | K44: Die Information über den Antrieb | L44: Informacje o napędu | M44: Information concernant le moteur | N44: Informatie betreffende de motor | O44: Teave mootori kohta | P44: Sähköistä avajaa koskevat tiedot
A45: Placement of top sealing | I45: Umístění horního těsnění | J45: Placement of top sealing | K45: Die Unterbringung der Oberdichtung | L45: Umieszczenie górnego uszczelnienia | M45: Emplacement du joint d'étanchéité | N45: Plaatsing van de top afdichting | O45: Ülemise tihendi paigaldamine | P45: Ylätiivisteen sijoitus
A46: at lintel | I46: na překladu | J46: at lintel | K46: Auf dem Sturz | L46: Na nadprožu | M46: au linteau | N46: op de latei | O46: sillusel | P46: Kamanassa
A47: on the top section | I47: na horní sekci | J47: on the top section | K47: Auf der Obersektion | L47: Na górnej częśći | M47: sur le panneau supérieur | N47: boven op top paneel | O47: ülemise sektsioonil | P47: Ylälamellissa
A48: Version of SL track system | I48: Verze SL vedení | J48: Version of SL track system | K48: Version der SL-Umlenkung | L48: SL wersja | M48: SL version | N48: Versie van SL beslagsysteem | O48: SL siinisüsteemi versioon | P48: SL nostotavan malli
A49: = set without pre-drilled holes in vertical angle; vertical angle in white color (RAL 9010) | I49: = sety bez předvrtaných otvorů ve svislém úhelníku; svislý úhelník v bílém provedení (RAL 9010) | J49: = set without pre-drilled holes in vertical angle; vertical angle in white color (RAL 9010) | K49: = Zargensätze ohne vorgeborte Löcher, Ausführung in RAL 9010 | L49: = zestawy bez wcześniej nawierconych otworów pod kątem pionowym, kąt pionowy w kolorze białym (RAL 9010) | M49: = Le kit sans trou percé dans le cornier vertical, le cornier vertical en exécution blanc (RAL 9010) | N49: = Set is zonder voorgeboorde gaten in verticale hoek; verticale hoek in kleur wit (RAL 9010) | O49: = set without pre-drilled holes in vertical angle; vertical angle in white color (RAL 9010) | P49: = set without pre-drilled holes in vertical angle; vertical angle in white color (RAL 9010)
A50: clear height could be decreased by accessories installed on inner side of door leaf (handgrip, reinforcing strut etc.) | I50: průjezdná výška může být snížena příslušenstvím nainstalovaným na vnitřní straně vratového křídla (madlo, výztuha apod.) | J50: clear height could be decreased by accessories installed on inner side of door leaf (handgrip, reinforcing strut etc.) | K50: Durchfahrtshöhe kann bei der Montage der Zubehörteile an die Innenseite des Torflügels reduziert werden (betrifft Handgriff, Versteifungen, etc.) | L50: wysokość prześwitu może zostać zmniejszona dzięki akcesoriom zainstalowanym po wewnętrznej stronie skrzydła drzwi (uchwyt, wzmocnienie itp.) | M50: L´ouverture de passage peut être réduite par les accessoires installés en intérieur du vantail de porte (les poignées, les renforts etc.) | N50: De hoogte van de vrije ruimte kan worden verlaagd door accessoires die aan de binnenkant van het deurblad zijn gemonteerd (handgreep, verstevigingsprofielen, enz.) | O50: puhaskõrgust saab vähendada ukselehe siseküljele paigaldatud tarvitute abil (käepide, tugevdustala jne) | P50: Vapaan kulkuaukon korkeus voi väheentyä ovilehteen kinnitetyn lisävarustuksen takia (jäykistin, käsikahva jne.)
A51: when door stopper is used | I51: při použití zarážky vratového křídla | J51: when door stopper is used | K51: bei der Verwendung der Toorflügelsperre | L51: przy użyciu ogranicznika skrzydła bramy | M51: avec la butée pour ventail de porte | N51: wanneer de deurstopper wordt gebruikt | O51: ukselehe stopperi kasutamisel | P51: Ovilehden stopparia käytettäessä
A52: Min. load capacity of ceiling/max. weight per hanging point: 100 kg | I52: Minimální únosnost stropu/maximální zatížení v každém kotevním bodě: 100 kg | J52: Min. load capacity of ceiling/max. weight per hanging point: 100 kg | K52: Minimale Tragfähigkeit der Decke/maximale Belastung in jedem einzelnen Befestigungspunkt: 100kg | L52: Minimalne obciążenie sufitu / maksymalne obciążenie w każdym punkcie uchwycenia: 100 kg | M52: Capacité min.de charge du plafond / capacité max.de charge des points d´ancre : 100kg | N52: Minimaal draagvermogen van plafond/maximaal gewicht per bevestigingspunt: 100kg | O52: Min. lae kandevõime/max kaal ühe riputuspunkti kohta: 100 kg | P52: Katon min. kantavuus/ max paino per ripustuspiste: 100 kg.
A53: Type of motor track | I53: Typ lišty pohonu | J53: Type of motor track | K53: Typ der Antriebsleiste | L53: Typ szyny napędowej | M53: Type de la glissière de propulsion | N53: Type van de motorgeleidingsrail | O53: Mootorisiini tüüp | P53: Moottoripalkin tyyppi
A54: Motor track too short | I54: Lišta pohonu příliš krátká | J54: Motor track too short | K54: Antriebsleiste zu kurz | L54: Drążek napędowy za krótki | M54: Barre d'entraînement trop courte | N54: Aandrijfstang te kort | O54: Liiga lühike ajamiriba | P54: Vetopalkki liian lyhyt

Sheet Selections (hidden)
A1: Výběr jazyka | C1: LHF-C
A2: CZ | B2: 1
A3: EN | B3: 2 | C3: =Translation!C38 -> 0 | E3: Hloubka vedení | I3: =Translation!C43 -> 0 | K3: Délka pohonu | N3: Kotvící bod pohonu | Q3: Kotvící bod lišty
A4: DE | B4: 3
A5: PL | B5: 4 | C5: =Translation!C39 -> 0 | E5: 0 | F5: =2575 -> 2575 | I5: Black | K5: =I5 -> Black | N5: =I5 -> Black | Q5: =I5 -> Black
A6: FR | B6: 5 | C6: =Translation!C40 -> 0 | E6: 2001 | F6: 2700 | K6: 0 | L6: 3540 | N6: 0 | O6: 3265 | Q6: 0 | R6: 1400
A7: NL | B7: 6 | E7: 2126 | F7: 2825 | I7: Cube | K7: 2376 | L7: 4240 | N7: 2376 | O7: 3975 | Q7: 3001
A8: ET | B8: 7 | E8: 2251 | F8: 2950
A9: FI | B9: 8 | E9: 2376 | F9: 3075
B10: 9 | E10: 2501 | F10: 3325
B11: 10 | E11: 2751 | F11: 3575
B12: 11
K13: =I7 -> Cube | N13: =I7 -> Cube | Q13: =I7 -> Cube
K14: 0 | L14: 3680 | N14: 0 | O14: 3480 | Q14: 0 | R14: 1800
A15: Výběr uložení | K15: 2501 | L15: 4160 | N15: 2501 | O15: 3960 | Q15: 2501 | R15: 2050
A16: Ano
A17: Ne
C18: LHF-C-Ki
C20: =Translation!D38 -> 0 | E20: Hloubka vedení | I20: =Translation!D43 -> 0 | K20: Délka pohonu | N20: Kotvící bod pohonu
C22: =Translation!D39 -> 0 | E22: 0 | F22: =2575 -> 2575 | I22: D600 | K22: =I22 -> D600 | N22: =I22 -> D600
C23: =Translation!D40 -> 0 | E23: 2001 | F23: 2700 | I23: D1000 | K23: =N23 -> F390119 | L23: =O23+(360/2) -> 2795 | N23: =I27 -> F390119 | O23: 2615
E24: 2126 | F24: 2825 | K24: =N24 -> F390126 | L24: =O24+(360/2) -> 3362 | N24: =I28 -> F390126 | O24: 3182
E25: 2251 | F25: 2950 | I25: =Translation!D53 -> 0 | K25: F390132 | L25: =O25+(360/2) -> 3945 | N25: =I29 -> F390132 | O25: 3765
E26: 2376 | F26: 3075 | I26: --- | K26: F390139 | L26: =O26+(360/2) -> 4545 | N26: =I30 -> F390139 | O26: 4365
E27: 2501 | F27: 3325 | H27: 0 | I27: F390119
E28: 2751 | F28: 3575 | H28: 2001 | I28: F390126 | K28: =I23 -> D1000 | N28: =I23 -> D1000
H29: 2401 | I29: F390132 | K29: =N29 -> F390119 | L29: =O29+(360/2) -> 2795 | N29: =I27 -> F390119 | O29: 2615
H30: 3001 | I30: F390139 | K30: =N30 -> F390126 | L30: =O30+(360/2) -> 3362 | N30: =I28 -> F390126 | O30: 3182
K31: F390132 | L31: =O31+(360/2) -> 3945 | N31: =I29 -> F390132 | O31: 3765
K32: F390139 | L32: =O32+(360/2) -> 4545 | N32: =I30 -> F390139 | O32: 4365
C34: LHR-C
C36: =Translation!E38 -> 0 | E36: Hloubka vedení | I36: =Translation!E43 -> 0 | K36: Délka pohonu | N36: Kotvící bod pohonu | Q36: Kotvící bod lišty
C38: =Translation!E39 -> 0 | E38: 0 | F38: =2575+120 -> 2695 | I38: Black | K38: =I38 -> Black | N38: =I38 -> Black | Q38: =I38 -> Black
C39: =Translation!E40 -> 0 | E39: 2001 | F39: =2700+120 -> 2820 | K39: 0 | L39: 3540 | N39: 0 | O39: 3265 | Q39: 0 | R39: 1400
E40: 2126 | F40: =2825+120 -> 2945 | I40: Cube | K40: 2376 | L40: 4240 | N40: 2376 | O40: 3975 | Q40: 3001
C41: Umístění horního těsnění | E41: 2251 | F41: =2950+120 -> 3070 | I41: =Translation!E42 -> 0
E42: 2376 | F42: =3075+120 -> 3195 | I42: =IF(H42=Selections!C38,90,IF(H42=Selections!C39,125,"Error")) -> 90
C43: =Translation!E46 -> 0 | E43: 2501 | F43: =3325+120 -> 3445 | I43: =IF(H43=Selections!C43,0,IF(H43=Selections!C44,35,"Error")) -> 0
C44: =Translation!E47 -> 0 | E44: 2751 | F44: =3575+120 -> 3695
K46: =I40 -> Cube | N46: =I40 -> Cube | Q46: =I40 -> Cube
K47: 0 | L47: 3680 | N47: 0 | O47: 3480 | Q47: 0 | R47: 1800
K48: 2501 | L48: 4160 | N48: 2126 | O48: 3960 | Q48: 2501 | R48: 2050
C50: LHR-C-Ki
C52: =Translation!F38 -> 0 | E52: Hloubka vedení | I52: =Translation!F43 -> 0 | K52: Délka pohonu | N52: Kotvící bod pohonu
C54: =Translation!F39 -> 0 | E54: 0 | F54: =2575+120 -> 2695 | I54: D600 | K54: =I54 -> D600 | N54: =I54 -> D600
C55: =Translation!F40 -> 0 | E55: 2001 | F55: =2700+120 -> 2820 | I55: D1000 | K55: =N55 -> F390119 | L55: =O55+(360/2) -> 2795 | N55: =I63 -> F390119 | O55: 2615
E56: 2126 | F56: =2825+120 -> 2945 | K56: =N56 -> F390126 | L56: =O56+(360/2) -> 3362 | N56: =I64 -> F390126 | O56: 3182
C57: Umístění horního těsnění | E57: 2251 | F57: =2950+120 -> 3070 | I57: =Translation!F42 -> 0 | K57: F390132 | L57: =O57+(360/2) -> 3945 | N57: =I65 -> F390132 | O57: 3765
E58: 2376 | F58: =3075+120 -> 3195 | I58: =IF(H58=Selections!C54,90,IF(H58=Selections!C55,125,"Error")) -> 90 | K58: F390139 | L58: =O58+(360/2) -> 4545 | N58: =I66 -> F390139 | O58: 4365
C59: =Translation!F46 -> 0 | E59: 2501 | F59: =3325+120 -> 3445 | I59: =IF(H59=Selections!C59,0,IF(H59=Selections!C60,35,"Error")) -> 0
C60: =Translation!F47 -> 0 | E60: 2751 | F60: =3575+120 -> 3695 | K60: =I55 -> D1000 | N60: =I55 -> D1000
I61: =Translation!F53 -> 0 | K61: =N61 -> F390119 | L61: =O61+(360/2) -> 2795 | N61: =I63 -> F390119 | O61: 2615
I62: --- | K62: =N62 -> F390126 | L62: =O62+(360/2) -> 3362 | N62: =I64 -> F390126 | O62: 3182
H63: 0 | I63: F390119 | K63: F390132 | L63: =O63+(360/2) -> 3945 | N63: =I65 -> F390132 | O63: 3765
H64: 2001 | I64: F390126 | K64: F390139 | L64: =O64+(360/2) -> 4545 | N64: =I66 -> F390139 | O64: 4365
H65: 2401 | I65: F390132
H66: 3001 | I66: F390139
C68: GV-SL
C70: =Translation!G38 -> 0 | I70: =Translation!G43 -> 0 | K70: Délka pohonu | N70: Kotvící bod pohonu | Q70: Kotvící bod lišty | T70: =Translation!G48 -> 0
C72: =Translation!G39 -> 0 | I72: Black | K72: =I72 -> Black | N72: =I72 -> Black | Q72: =I72 -> Black | T72: SL 350
C73: =Translation!G40 -> 0 | K73: 0 | L73: 3540 | N73: 0 | O73: 3265 | Q73: 0 | R73: 1400 | T73: SL 420
I74: Cube | K74: 2376 | L74: 4240 | N74: 2376 | O74: 3975 | Q74: 3001
K80: =I74 -> Cube | N80: =I74 -> Cube | Q80: =I74 -> Cube
K81: 0 | L81: 3680 | N81: 0 | O81: 3480 | Q81: 0 | R81: 1800
K82: 2501 | L82: 4160 | N82: 2126 | O82: 3960 | Q82: 2501 | R82: 2050
C84: GV-SL-Ki
C86: =Translation!H38 -> 0 | I86: =Translation!H43 -> 0 | K86: Délka pohonu | N86: Kotvící bod pohonu | Q86: =Translation!H48 -> 0
C88: =Translation!H39 -> 0 | I88: D600 | K88: =I88 -> D600 | N88: =I88 -> D600 | Q88: SL 350
C89: =Translation!H40 -> 0 | I89: D1000 | K89: =N89 -> F390119 | L89: =O89+(360/2) -> 2795 | N89: =I96 -> F390119 | O89: 2615 | Q89: SL 420
K90: =N90 -> F390126 | L90: =O90+(360/2) -> 3362 | N90: =I97 -> F390126 | O90: 3182
K91: F390132 | L91: =O91+(360/2) -> 3945 | N91: =I98 -> F390132 | O91: 3765
K92: F390139 | L92: =O92+(360/2) -> 4545 | N92: =I99 -> F390139 | O92: 4365
I94: =Translation!F80 -> 0 | K94: =I89 -> D1000 | N94: =I89 -> D1000
I95: --- | K95: =N95 -> F390119 | L95: =O95+(360/2) -> 2795 | N95: =I96 -> F390119 | O95: 2615
H96: 0 | I96: F390119 | K96: =N96 -> F390126 | L96: =O96+(360/2) -> 3362 | N96: =I97 -> F390126 | O96: 3182
H97: 2001 | I97: F390126 | K97: F390132 | L97: =O97+(360/2) -> 3945 | N97: F390132 | O97: 3765
H98: 2401 | I98: F390132 | K98: F390139 | L98: =O98+(360/2) -> 4545 | N98: F390139 | O98: 4365
H99: 3001 | I99: F390139
